bitfinex-derivatives/quotes_ETHF0:USTF0_20251001
["timestamp","ask_amount","ask_price","bid_price","bid_amount"]
[1759287140016,1.4322,4160.7,4160.6,0.5443]
[1759287140910,1.4322,4160.7,4160.6,0.54650561]
[1759287142914,1.4322,4160.7,4160.6,0.00220561]
[1759287144800,1.4322,4160.7,4160.6,0.32780561]
[1759287145005,1.4322,4160.7,4160.6,0.54540561]
[1759287146109,1.113,4160.7,4160.6,0.76430561]
[1759287146414,1.4455,4160.7,4160.6,0.76430561]
[1759287149208,1.4455,4160.7,4160.6,0.54540561]
[1759287149414,1.4455,4160.7,4160.6,0.21980561]
[1759287150214,1.4455,4160.7,4160.6,0.54540561]
[1759287152619,0.4375,4160.7,4160.6,2.05993768]
[1759287152818,0.88789,4160.8,4160.7,0.7621]
[1759287153018,1.44149,4160.8,4160.7,0.7621]
[1759287154417,1.44149,4160.8,4160.7,1.1946]
[1759287154613,1.44149,4160.8,4160.7,0.7621]
[1759287154813,1.44149,4160.8,4160.7,1.1946]
[1759287155318,0.4335,4160.8,4160.7,1.1946]
[1759287155519,0.86599,4160.8,4160.7,1.1946]
[1759287156019,0.67548,4160.9,4160.8,0.65009]
[1759287156321,0.67548,4160.9,4160.8,1.19459]
[1759287156322,0.88788,4160.9,4160.8,1.19459]
[1759287156515,0.64488,4160.9,4160.8,1.19459]
[1759287156718,0.2124,4160.9,4160.8,1.19459]
[1759287157319,0.64488,4160.9,4160.8,1.19459]
[1759287158214,0.2124,4160.9,4160.8,1.19459]
[1759287161024,0.64488,4160.9,4160.8,1.19459]
[1759287161527,0.2124,4160.9,4160.8,1.19459]
[1759287164230,0.64488,4160.9,4160.8,1.19459]
[1759287164430,0.97738,4160.9,4160.8,1.19459]
[1759287164737,0.2124,4160.9,4160.8,1.19459]
[1759287166734,0.67547,4161.0,4160.9,1.19458]
[1759287167233,0.88787,4161.0,4160.9,1.19458]
[1759287168034,1.22037,4161.0,4160.9,1.19458]
[1759287168932,0.97737,4161.0,4160.9,1.19458]
[1759287169834,0.64487,4161.0,4160.9,1.19458]
[1759287171535,0.64487,4161.0,4160.9,2.05770207]
[1759287173433,0.2124,4161.0,4160.9,2.05770207]
[1759287173636,0.64487,4161.0,4160.9,2.05770207]
[1759287174937,0.64487,4161.0,4160.9,1.62522207]
[1759287176136,1.18937,4161.0,4160.9,0.7621]
[1759287178737,0.4467,4160.7,4160.6,0.00220561]
[1759287178943,1.4416,4160.7,4160.6,0.00220561]
[1759287179141,0.43249,4160.8,4160.7,1.2147]
[1759287179440,1.21649,4160.8,4160.7,1.2147]
[1759287179633,1.21649,4160.8,4160.7,0.7822]
[1759287180039,1.44159,4160.8,4160.7,0.7822]
[1759287182742,1.19859,4160.8,4160.7,0.7822]
[1759287182939,2.80003626,4161.3,4161.0,0.56256]
[1759287182940,1.71892626,4161.3,4161.0,0.56256]
[1759287183144,0.65710883,4161.3,4161.2,1.64532207]
[1759287183444,1.44460883,4161.3,4161.2,1.64532207]
[1759287184143,1.44460883,4161.3,4161.2,0.7822]
[1759287185235,1.44460883,4161.3,4161.2,0.5543]
[1759287185436,0.87917,4161.0,4160.9,1.30302207]
[1759287185639,1.19857,4161.0,4160.9,1.64532207]
[1759287187637,0.2216,4161.0,4160.9,2.07780207]
[1759287187840,0.43247,4161.0,4160.9,1.21468]
[1759287188038,0.43247,4161.0,4160.9,1.64532207]
[1759287188443,0.43247,4161.0,4160.9,2.07780207]
[1759287189141,0.24606883,4161.3,4161.0,0.1301]
[1759287189348,0.24606883,4161.3,4161.2,2.07777207]
[1759287189349,0.43550883,4161.3,4161.2,2.07777207]
[1759287189653,0.43550883,4161.3,4161.2,1.64532207]
[1759287189845,0.97650883,4161.3,4161.2,1.64532207]
[1759287190041,1.20160883,4161.3,4161.2,1.64532207]
[1759287190543,1.20160883,4161.3,4161.2,0.7822]
[1759287193546,0.76916883,4161.3,4160.6,0.00220561]
[1759287193753,0.9735,4160.7,4160.6,1.64752768]
[1759287193942,1.1986,4160.7,4160.6,1.64752768]
[1759287194147,1.1986,4160.7,4160.6,0.00220561]
[1759287195840,1.4416,4160.7,4160.6,0.00220561]
[1759287197351,6.4416,4160.7,4160.6,0.00220561]
[1759287197556,1.19869,4159.8,4159.7,1.41742207]
[1759287197847,1.19869,4159.8,4159.7,1.64532207]
[1759287198557,1.19869,4159.8,4159.7,1.64753795]
[1759287199750,1.19869,4159.8,4159.7,0.00221588]
[1759287200350,1.19869,4159.8,4159.7,0.56571588]
[1759287202655,1.19869,4159.8,4159.7,0.00221588]
[1759287204158,1.19869,4159.8,4159.7,0.54881588]
[1759287205853,0.7661,4159.8,4159.7,0.77251588]
[1759287206057,1.12229,4159.8,4159.7,1.20511588]
[1759287206257,1.44259,4159.8,4159.7,0.77251588]
[1759287207458,1.44259,4159.8,4159.7,0.00221588]
[1759287207855,1.44259,4159.8,4159.7,0.53931588]
[1759287208557,1.44259,4159.8,4159.7,0.76301588]
[1759287210859,1.44259,4159.8,4159.7,0.00221588]
[1759287212858,0.2084,4158.7,4158.6,1.62392207]
[1759287213063,0.5287,4158.7,4158.6,1.62392207]
[1759287213765,0.96141,4158.7,4158.6,1.62607975]
[1759287213962,0.2084,4158.7,4158.6,2.05879975]
[1759287214161,0.243,4158.8,4158.7,0.7608]
[1759287214963,0.243,4158.8,4158.7,1.19351]
[1759287215169,0.6757,4158.8,4158.7,1.19351]
[1759287215560,0.8841,4158.8,4158.7,1.19351]
[1759287216862,0.4514,4158.8,4158.7,1.19351]
[1759287217070,0.8841,4158.8,4158.7,1.19351]
[1759287218276,0.4514,4158.8,4158.7,1.19351]
[1759287219167,0.8841,4158.8,4158.7,1.19351]
[1759287219365,0.4514,4158.8,4158.7,1.19351]
[1759287219566,0.8841,4158.8,4158.7,1.19351]
[1759287221363,0.4514,4158.8,4158.7,1.19351]
[1759287222268,0.2084,4158.8,4158.7,1.19351]
[1759287222775,0.6411,4158.8,4158.7,0.7608]
[1759287222969,0.4239,4158.8,4158.7,1.19351]
[1759287223169,0.2084,4158.8,4158.7,1.19351]
[1759287223672,0.3203,4159.1,4159.0,0.43268]
[1759287223879,0.2084,4159.4,4159.3,1.19344]
[1759287224076,0.43263,4159.5,4159.4,0.4401]
[1759287224277,0.64103,4159.5,4159.4,0.7608]
[1759287224779,0.64103,4159.5,4159.4,1.19343]
[1759287224974,0.64103,4159.5,4159.4,0.7608]
[1759287225678,0.96133,4159.5,4159.4,0.7608]
[1759287226181,1.17683,4159.5,4159.4,0.7608]
[1759287230181,1.17687,4159.1,4159.0,0.64908]
[1759287230373,1.17687,4159.1,4159.0,0.96978]
[1759287230574,1.17687,4159.1,4159.0,1.32238]
[1759287232478,1.17687,4159.1,4159.0,0.7608]
[1759287232980,1.17687,4159.1,4159.0,1.19348]
[1759287233182,1.17687,4159.1,4159.0,0.7608]
[1759287235985,0.64251,4158.7,4158.6,1.19737768]
[1759287236184,1.16421,4158.7,4158.6,0.76465768]
[1759287236583,1.16421,4158.7,4158.6,1.19737768]
[1759287237479,1.16421,4158.7,4158.6,0.76465768]
[1759287238873,1.40721,4158.7,4158.6,0.00215768]
[1759287242381,1.40721,4158.7,4158.6,0.55405768]
[1759287242590,1.40721,4158.7,4158.6,0.00215768]
[1759287244487,1.16421,4158.7,4158.6,0.55405768]
[1759287244686,1.16421,4158.7,4158.6,0.76465768]
[1759287244687,1.40721,4158.7,4158.6,0.76465768]
[1759287244888,0.88551,4158.7,4158.6,0.76465768]
[1759287245084,1.40721,4158.7,4158.6,0.76465768]
[1759287246483,1.40721,4158.7,4158.6,0.55405768]
[1759287246683,1.40721,4158.7,4158.6,0.00215768]
[1759287247284,1.16421,4158.7,4158.6,0.00215768]
[1759287247482,1.40721,4158.7,4158.6,0.00215768]
[1759287247688,1.40721,4158.7,4158.6,0.55405768]
[1759287250491,1.40721,4158.7,4158.6,0.00215768]
[1759287251687,6.40721,4158.7,4158.6,0.00215768]
[1759287252088,0.126,4158.0,4157.2,0.64617803]
[1759287252292,1.16436,4157.3,4157.2,0.5519]
[1759287252487,1.16441,4156.8,4156.7,0.7625]
[1759287252893,1.16441,4156.8,4156.7,0.5519]
[1759287253191,1.16749678,4156.8,4156.7,0.55459495]
[1759287253793,0.73458678,4156.8,4156.7,0.76519495]
[1759287255198,0.00308678,4156.8,4156.7,1.76463094]
[1759287264798,0.00308678,4156.8,4156.7,0.76519495]
[1759287265101,0.21008678,4156.8,4156.7,0.76519495]
[1759287265607,0.00308678,4156.8,4156.7,0.76519495]
[1759287265899,0.00308678,4156.8,4156.7,1.19811495]
[1759287266896,0.21008678,4156.8,4156.7,1.19811495]
[1759287267505,0.00308678,4156.8,4156.7,1.19811495]
[1759287271701,0.43599678,4156.8,4156.7,1.19811495]
[1759287272008,0.00308678,4156.8,4156.7,1.19811495]
[1759287276210,0.00308678,4156.8,4156.7,2.06261984]
[1759287278908,0.3384,4158.0,4157.8,0.3183]
[1759287279206,0.207,4157.9,4157.8,2.05491489]
[1759287279908,0.20993592,4157.9,4157.8,2.05491489]
[1759287280407,0.00293592,4157.9,4157.8,2.05491489]
[1759287280603,0.00293592,4157.9,4157.8,1.62210489]
[1759287280811,0.54833592,4157.9,4157.8,1.62210489]
[1759287284007,0.20993592,4157.9,4157.8,2.05491489]
[1759287284706,0.00293592,4157.9,4157.8,2.05491489]
[1759287288409,0.43572592,4157.9,4157.8,2.05491489]
[1759287289918,1.19942592,4157.9,4157.8,1.19041]
[1759287290110,0.00293592,4157.9,4157.8,1.19041]
[1759287291405,0.207,4159.1,4159.0,1.32038]
[1759287291601,0.207,4159.1,4159.0,0.8877]
[1759287291808,0.7637,4158.7,4158.6,0.3183]
[1759287292012,0.7637,4158.7,4158.6,0.5362]
[1759287292509,0.76558721,4158.7,4158.6,0.7576]
[1759287292707,0.42718721,4158.7,4158.6,0.7576]
[1759287292907,0.20888721,4158.7,4158.6,0.7576]
[1759287294613,0.00188721,4158.7,4158.6,0.7576]
[1759287298618,0.00188721,4158.7,4158.6,1.19032]
[1759287300617,0.3215,4159.5,4159.4,0.43263]
[1759287300618,0.5357,4159.5,4159.4,0.43263]
[1759287300821,0.5357,4159.5,4159.4,2.07393489]
[1759287301622,0.75315351,4159.5,4159.4,2.07393489]
[1759287303829,0.87895351,4159.5,4159.0,0.1298]
[1759287304020,0.7504,4159.2,4159.1,0.77366]
[1759287304326,0.7504,4159.2,4159.1,1.00286]
[1759287305423,0.7504,4159.2,4159.1,1.20946]
[1759287308127,0.1258,4159.0,4158.9,0.341]
[1759287308433,0.7504,4158.7,4158.6,1.00293]
[1759287308627,0.243,4159.0,4158.8,0.341]
[1759287308829,0.2142,4159.4,4159.3,0.86845]
[1759287309133,0.96834,4159.4,4159.3,0.7768]
[1759287309333,1.18304,4159.4,4159.3,0.7768]
[1759287309832,0.9934,4159.4,4159.3,1.20945]
[1759287310432,0.7504,4159.4,4159.3,1.20945]
[1759287312239,0.00275351,4159.5,4159.4,1.20944]
[1759287312432,0.00275351,4159.5,4159.4,2.07394489]
[1759287312936,41.5504,4160.4,4160.3,1.20935]
[1759287313140,41.7934,4160.4,4160.3,1.20935]
[1759287313334,0.9934,4160.4,4160.3,1.20935]
[1759287313731,0.99529518,4160.4,4160.3,1.2112534]
[1759287314134,0.99529518,4160.4,4160.3,0.0019034]
[1759287314337,5.99529518,4160.4,4160.3,0.0019034]
[1759287315240,1.18302,4159.6,4159.5,0.2292]
[1759287315450,0.7504,4159.1,4159.0,0.66188]
[1759287315634,0.7504,4159.1,4159.0,0.43268]
[1759287315838,0.9934,4159.1,4159.0,0.86848]
[1759287316043,0.9934,4159.1,4159.0,1.20948]
[1759287316344,0.9934,4159.1,4159.0,1.21195262]
[1759287317852,0.9934,4159.1,4159.0,1.34175262]
[1759287318047,0.2142,4159.3,4159.2,0.66186]
[1759287318251,0.4572,4159.3,4159.2,1.20946]
[1759287318451,0.7787,4159.3,4159.2,1.20946]
[1759287318652,0.9934,4159.3,4159.2,1.20946]
[1759287320550,0.9934,4159.3,4159.2,0.7768]
[1759287321053,0.7631,4159.1,4159.0,0.00247262]
[1759287321250,0.7631,4159.1,4159.0,0.53657262]
[1759287321442,0.7631,4159.1,4159.0,0.00247262]
[1759287321645,0.7631,4159.1,4159.0,0.53657262]
[1759287321847,5.7631,4159.1,4159.0,0.00247262]
[1759287325253,6.19577,4159.1,4159.0,0.00247262]
[1759287329460,46.99577,4159.1,4159.0,0.00247262]
[1759287330262,41.99577,4159.1,4159.0,0.00247262]
[1759287330461,42.18592174,4159.1,4159.0,0.00247262]
[1759287330663,41.99577,4159.1,4159.0,0.00247262]
[1759287330856,43.71754397,4159.1,4159.0,0.00247262]
[1759287331361,43.96054397,4159.1,4159.0,0.00247262]
[1759287333769,1.18688,4158.1,4158.0,0.2287]
[1759287334067,1.42988,4158.1,4158.0,0.2287]
[1759287334256,1.42988,4158.1,4158.0,0.5474]
[1759287334662,1.42988,4158.1,4158.0,0.00213147]
[1759287335763,42.22988,4158.1,4158.0,0.00213147]
[1759287339668,41.23278,4158.1,4158.0,0.90133147]
[1759287339864,41.47578,4158.1,4158.0,0.90133147]
[1759287340066,42.02238,4158.1,4158.0,0.90133147]
[1759287340265,42.22988,4158.1,4158.0,0.90133147]
[1759287340566,42.22988,4158.1,4158.0,0.77163147]
[1759287340771,1.42988,4158.1,4158.0,0.77163147]
[1759287342473,1.10718,4158.1,4158.0,0.90133147]
[1759287342668,0.43278,4158.1,4158.0,0.90133147]
[1759287342968,1.42988,4158.1,4158.0,0.90133147]
[1759287343566,1.10718,4158.1,4158.0,0.90133147]
[1759287344965,1.42988,4158.1,4158.0,0.77163147]
[1759287345270,1.42988,4158.1,4158.0,0.54953147]
[1759287347071,1.42988,4158.1,4158.0,0.90133147]
[1759287347370,0.67578,4158.1,4158.0,0.90133147]
[1759287347769,0.89968,4158.1,4158.0,0.90133147]
[1759287348272,41.23275,4158.4,4158.3,0.7695]
[1759287348461,41.47575,4158.4,4158.3,0.7695]
[1759287348662,41.47575,4158.4,4158.3,1.20226]
[1759287348858,0.67575,4158.4,4158.3,0.7695]
[1759287349069,0.243,4158.4,4158.3,0.7695]
[1759287349573,0.67575,4158.4,4158.3,1.20226]
[1759287349758,0.67575,4158.4,4158.3,0.7695]
[1759287351165,1.42985,4158.4,4158.3,0.7695]
[1759287351865,1.42985,4158.4,4158.3,0.5474]
[1759287356076,1.42985,4158.4,4158.0,0.00213147]
[1759287356077,1.19388,4158.1,4158.0,0.00213147]
[1759287356272,1.43688,4158.1,4158.0,0.54143147]
[1759287356579,1.43688,4158.1,4158.0,0.75113147]
[1759287356974,1.19388,4158.1,4158.0,0.75113147]
[1759287357177,1.43688,4158.1,4158.0,0.88663147]
[1759287357381,1.10458,4158.1,4158.0,0.88663147]
[1759287357680,1.43688,4158.1,4158.0,0.88663147]
[1759287358279,1.43688,4158.1,4158.0,0.75113147]
[1759287358974,1.19388,4158.1,4158.0,0.75113147]
[1759287359282,1.43688,4158.1,4158.0,0.75113147]
[1759287360577,1.43688,4158.1,4158.0,0.00213147]
[1759287361184,1.43688,4158.1,4158.0,0.32433147]
[1759287361681,1.43688,4158.1,4158.0,0.75113147]
[1759287364784,1.43688,4158.1,4158.0,0.54143147]
[1759287365387,1.19388,4158.1,4158.0,0.54143147]
[1759287365684,1.43688,4158.1,4158.0,0.54143147]
[1759287366085,1.43688,4158.1,4158.0,0.75113147]
[1759287366982,1.19388,4158.1,4158.0,0.75113147]
[1759287367184,0.43278,4158.1,4158.0,1.31942147]
[1759287367385,0.67578,4158.1,4158.0,1.31942147]
[1759287368190,0.89768,4158.1,4158.0,0.88663147]
[1759287368691,1.43688,4158.1,4158.0,0.88663147]
[1759287369292,1.10458,4158.1,4158.0,0.88663147]
[1759287369789,0.6718,4158.1,4158.0,1.31942147]
[1759287370090,0.2219,4158.1,4158.0,1.31942147]
[1759287370286,0.89768,4158.1,4158.0,1.31942147]
[1759287372388,1.43688,4158.1,4158.0,0.88663147]
[1759287373498,1.43688,4158.1,4158.0,1.31942147]
[1759287373788,1.0041,4158.1,4158.0,1.31942147]
[1759287374288,0.2219,4158.3,4158.2,0.43276]
[1759287374485,0.4649,4158.3,4158.2,0.85956]
[1759287374688,0.2219,4158.3,4158.2,0.85956]
[1759287374886,0.2219,4158.7,4158.6,1.18173]
[1759287375088,0.243,4158.8,4158.7,0.749]
[1759287375284,0.4649,4158.8,4158.7,0.749]
[1759287376088,1.0041,4158.8,4158.7,0.749]
[1759287380499,1.4368,4158.8,4158.7,1.18171]
[1759287380699,1.0041,4158.8,4158.7,1.18171]
[1759287381294,1.4368,4158.8,4158.7,1.18171]
[1759287382302,1.0041,4158.8,4158.7,1.18171]
[1759287382599,0.6718,4158.8,4158.7,1.18171]
[1759287383101,1.4382,4158.8,4158.7,1.18171]
[1759287388706,0.9905,4158.8,4158.7,1.18171]
[1759287389417,1.4232,4158.8,4158.7,1.18171]
[1759287389620,0.9905,4158.8,4158.7,1.18171]
[1759287390019,1.4232,4158.8,4158.7,1.18171]
[1759287390717,0.9905,4158.8,4158.7,1.18171]
[1759287391820,0.7475,4158.8,4158.7,1.18171]
[1759287392020,1.4232,4158.8,4158.7,1.18171]
[1759287395621,0.9905,4158.8,4158.7,1.18171]
[1759287396211,1.4232,4158.8,4158.7,1.18171]
[1759287397220,0.9905,4158.8,4158.7,1.18171]
[1759287398326,0.6718,4158.8,4158.7,1.18171]
[1759287398823,0.9905,4158.8,4158.7,1.18171]
[1759287399227,0.6718,4158.8,4158.7,1.18171]
[1759287399724,0.9905,4158.8,4158.7,1.18171]
[1759287405134,0.9905,4158.8,4158.3,0.43275]
[1759287405135,0.7468,4158.4,4158.3,0.43275]
[1759287405428,0.9898,4158.4,4158.3,0.95385]
[1759287406329,1.42255,4158.4,4158.3,0.43275]
[1759287406530,0.9898,4158.4,4158.3,0.43275]
[1759287408228,0.9898,4158.4,4158.3,0.95385]
[1759287408818,0.9898,4158.4,4158.3,1.16205]
[1759287409928,0.6711,4158.4,4158.3,1.16205]
[1759287410134,0.2218,4158.6,4158.5,0.97744]
[1759287410335,0.4648,4158.6,4158.5,1.28724]
[1759287411028,1.42253,4158.6,4158.5,1.28724]
[1759287411234,1.42253,4158.6,4158.5,1.16204]
[1759287411532,1.42253,4158.6,4158.5,0.43274]
[1759287412332,1.42253,4158.6,4158.5,0.74254]
[1759287413336,1.42253,4158.6,4158.5,0.95384]
[1759287416835,1.42253,4158.6,4158.5,1.18044]
[1759287417033,0.9898,4158.6,4158.5,1.18044]
[1759287417335,1.0074,4158.6,4158.5,1.30754]
[1759287417932,1.44013,4158.6,4158.5,1.30754]
[1759287419037,1.0074,4158.6,4158.5,1.30754]
[1759287419738,1.44013,4158.6,4158.5,1.30754]
[1759287420236,1.44013,4158.6,4158.5,0.5211]
[1759287420540,1.0074,4158.6,4158.5,0.95384]
[1759287420839,1.0074,4158.6,4158.5,1.18044]
[1759287425240,1.44013,4158.6,4158.5,1.18044]
[1759287425442,0.4435,4158.2,4158.1,0.3113]
[1759287425736,2.31846164,4158.2,4158.0,0.00213147]
[1759287425946,0.4435,4157.3,4156.9,1.08025441]
[1759287426133,0.1246,4157.5,4156.7,0.43292]
[1759287426134,0.7798,4156.8,4156.7,0.43292]
[1759287426442,41.8218,4156.8,4156.7,0.43292]
[1759287426945,41.82363507,4156.8,4156.7,0.43487664]
[1759287427442,42.68752671,4156.8,4156.7,0.00195664]
[1759287438147,43.12043671,4156.8,4156.7,0.00195664]
[1759287442241,43.12043671,4156.8,4156.7,0.31605664]
[1759287442947,43.12043671,4156.8,4156.7,0.00195664]
[1759287446048,0.43299,4156.1,4156.0,0.3146]
[1759287446345,1.43639,4156.1,4156.0,0.5287]
[1759287446946,1.43639,4156.1,4156.0,0.742]
[1759287447253,1.43639,4156.1,4156.0,0.7439423]
[1759287447645,1.43639,4156.1,4156.0,0.8683423]
[1759287447845,1.43639,4156.1,4156.0,0.7439423]
[1759287451150,1.43639,4156.1,4156.0,0.8683423]
[1759287452260,0.97116,4156.4,4156.3,0.742]
[1759287452451,1.43636,4156.4,4156.3,0.742]
[1759287453251,1.43636,4156.4,4156.0,0.1263423]
[1759287453458,0.7604,4156.1,4156.0,0.8683423]
[1759287453659,1.0034,4156.1,4156.0,0.8683423]
[1759287454658,0.243,4156.1,4156.0,0.8683423]
[1759287454857,0.67599,4156.1,4156.0,0.8683423]
[1759287457661,0.89469,4156.1,4156.0,0.8683423]
[1759287458462,0.89469,4156.1,4156.0,1.3013423]
[1759287458652,0.65169,4156.1,4156.0,1.3013423]
[1759287458852,0.89469,4156.1,4156.0,1.3013423]
[1759287459563,0.2187,4156.1,4156.0,1.3013423]
[1759287459770,0.89469,4156.1,4156.0,1.3013423]
[1759287460976,0.2187,4156.3,4156.2,0.43297]
[1759287461272,1.19332,4156.7,4156.6,0.4274]
[1759287461476,1.43632,4156.7,4156.6,0.2141]
[1759287461677,1.43632,4156.7,4156.6,0.5287]
[1759287463277,0.2187,4156.2,4156.1,0.4274]
[1759287463483,1.21418,4156.2,4156.1,1.17499]
[1759287463977,1.21418,4156.2,4156.1,0.742]
[1759287464283,1.43638,4156.2,4156.1,0.742]
[1759287464481,1.43638,4156.2,4156.1,1.17499]
[1759287464982,1.43638,4156.2,4156.1,0.742]
[1759287469791,1.43638,4156.2,4156.1,1.17499]
[1759287471880,1.0034,4156.2,4156.1,1.17499]
[1759287472081,0.243,4156.2,4156.1,1.17499]
[1759287472790,0.4617,4156.2,4156.1,1.17499]
[1759287472990,0.89468,4156.2,4156.1,1.17499]
[1759287473192,1.23348,4156.2,4156.1,1.17499]
[1759287473993,1.44768,4156.2,4156.1,1.17499]
[1759287474390,1.44768,4156.2,4156.1,0.742]
[1759287474894,1.0147,4156.2,4156.1,1.17499]
[1759287475088,1.44768,4156.2,4156.1,1.17499]
[1759287475285,0.243,4156.2,4156.1,1.17499]
[1759287476987,0.3388,4156.5,4156.1,0.742]
[1759287477191,1.20744507,4156.8,4156.7,0.7709]
[1759287477386,1.45044507,4156.8,4156.7,0.7709]
[1759287477695,1.45044507,4156.8,4156.7,0.3395]
[1759287478492,0.2142,4156.5,4156.4,0.2156]
[1759287478687,1.20564,4156.5,4156.4,0.2156]
[1759287478898,1.20569,4156.1,4156.0,0.8972423]
[1759287479098,1.44869,4156.1,4156.0,0.7728423]
[1759287479294,1.44869,4156.1,4156.0,0.3414423]
[1759287479789,1.44869,4156.1,4156.0,0.5570423]
[1759287483493,0.7727,4156.1,4156.0,0.7728423]
[1759287483798,1.0157,4156.1,4156.0,0.9016423]
[1759287484695,0.2197,4156.1,4156.0,0.9016423]
[1759287484902,0.243,4156.1,4156.0,0.9016423]
[1759287485294,0.4627,4156.1,4156.0,0.9016423]
[1759287485493,0.8015,4156.1,4156.0,0.9016423]
[1759287488504,0.8015,4156.1,4156.0,1.3346423]
[1759287488702,1.23449,4156.1,4156.0,1.3346423]
[1759287489706,0.8015,4156.1,4156.0,1.3346423]
[1759287489899,0.2197,4156.5,4156.4,0.43295]
[1759287490208,1.0157,4156.5,4156.4,1.20385]
[1759287490407,0.4339,4156.3,4156.1,0.43299]
[1759287490700,1.20569,4156.2,4156.1,0.98809]
[1759287492503,0.7727,4156.2,4156.1,0.98809]
[1759287492703,0.7727,4156.2,4156.1,1.20389]
[1759287494204,1.20568,4156.2,4156.1,1.20389]
[1759287496202,0.2197,4156.2,4156.1,1.20389]
[1759287496409,0.4627,4156.2,4156.1,1.20389]
[1759287496706,0.243,4156.2,4156.1,1.20389]
[1759287497306,0.4627,4156.2,4156.1,1.20389]
[1759287497504,0.2197,4156.2,4156.1,1.20389]
[1759287497706,0.3388,4156.5,4156.4,0.43295]
[1759287497911,0.8015,4156.5,4156.4,1.20385]
[1759287498102,1.0157,4156.5,4156.4,1.20385]
[1759287498807,0.4627,4156.5,4156.4,1.20385]
[1759287499110,1.21724,4156.5,4156.4,1.20385]
[1759287499312,1.44254,4156.5,4156.4,1.20385]
[1759287500012,1.44254,4156.5,4156.4,0.7709]
[1759287503816,1.19954,4156.5,4156.4,0.7709]
[1759287504015,1.44254,4156.5,4156.4,0.7709]
[1759287504218,1.57564,4156.5,4156.4,0.5551]
[1759287505916,1.44254,4156.5,4156.4,0.7758]
[1759287509120,2.18215105,4156.5,4156.4,1.20875]
[1759287509421,2.37209105,4156.5,4156.4,1.20875]
[1759287509628,0.67594,4156.5,4156.4,1.20875]
[1759287510315,0.43294,4156.6,4156.5,1.01784]
[1759287510514,0.43292,4156.7,4156.6,1.20193]
[1759287510820,0.66045507,4156.8,4156.7,1.20192]
[1759287511022,0.90345507,4156.8,4156.7,1.20192]
[1759287511217,0.47053507,4156.8,4156.7,1.20192]
[1759287511415,0.90344507,4156.8,4156.7,1.20192]
[1759287511613,0.47053507,4156.8,4156.7,0.769]
[1759287511918,1.45834507,4156.8,4156.7,0.769]
[1759287512319,1.45834507,4156.8,4156.7,1.20192]
[1759287512822,1.12274507,4156.8,4156.7,1.20192]
[1759287513128,1.12274507,4156.8,4156.7,0.769]
[1759287513418,0.87974507,4156.8,4156.7,1.20192]
[1759287513722,1.12274507,4156.8,4156.7,1.20192]
[1759287515728,1.45834507,4156.8,4156.7,1.20192]
[1759287517423,0.68983507,4156.8,4156.7,1.20192]
[1759287517624,1.12274507,4156.8,4156.7,1.20192]
[1759287517926,1.45834507,4156.8,4156.7,0.769]
[1759287519323,1.45834507,4156.8,4156.7,1.20192]
[1759287521123,1.45834507,4156.8,4156.7,0.98122]
[1759287521530,1.45834507,4156.8,4156.7,0.5483]
[1759287522426,0.65869,4156.1,4156.0,0.5785423]
[1759287522634,1.45659,4156.1,4156.0,0.0019423]
[1759287522930,1.45659,4156.1,4156.0,0.5502423]
[1759287523933,1.45659,4156.1,4156.0,0.9832423]
[1759287524631,1.45659,4156.1,4156.0,0.5502423]
[1759287524832,1.0236,4156.1,4156.0,0.7709423]
[1759287525034,1.45659,4156.1,4156.0,1.2039423]
[1759287525229,1.45659,4156.1,4156.0,1.3410423]
[1759287525428,1.45659,4156.1,4156.0,0.9080423]
[1759287526134,1.45659,4156.1,4156.0,0.7709423]
[1759287530036,1.45659,4156.1,4156.0,0.5502423]
[1759287536842,1.45659,4156.1,4156.0,0.3231423]
[1759287537047,1.45659,4156.1,4156.0,0.0019423]
[1759287537543,1.45659,4156.1,4156.0,0.3371423]
[1759287538143,1.45659,4156.1,4156.0,0.5609423]
[1759287540848,0.87799,4156.1,4156.0,0.9211423]
[1759287541045,1.12099,4156.1,4156.0,0.9211423]
[1759287541242,1.43229,4156.1,4156.0,0.9211423]
[1759287541440,1.18929,4156.1,4156.0,0.9211423]
[1759287541747,1.43229,4156.1,4156.0,0.9211423]
[1759287542551,1.18929,4156.1,4156.0,0.9211423]
[1759287542746,1.11999,4156.1,4156.0,0.9211423]
[1759287542954,0.687,4156.1,4156.0,1.3541423]
[1759287543251,0.2234,4156.3,4156.2,1.22098]
[1759287543551,0.2234,4156.3,4156.1,0.8647476]
[1759287543552,0.43297,4156.3,4156.1,0.8647476]
[1759287543743,0.43297,4156.3,4156.2,0.4528]
[1759287544249,0.43297,4156.3,4156.2,0.788]
[1759287544844,0.67497,4156.3,4156.2,0.788]
[1759287545250,0.67497,4156.3,4156.2,1.22098]
[1759287545450,0.89837,4156.3,4156.2,1.22098]
[1759287546048,0.65637,4156.3,4156.2,1.22098]
[1759287546846,0.89837,4156.3,4156.2,1.22098]
[1759287547152,0.67497,4156.3,4156.2,1.22098]
[1759287547452,0.43297,4156.3,4156.2,1.22098]
[1759287550057,0.65637,4156.3,4156.2,1.22098]
[1759287553460,0.2234,4156.3,4156.2,1.22098]
[1759287554260,0.65636,4156.3,4156.2,1.22098]
[1759287554562,0.2234,4156.3,4156.2,1.22098]
[1759287555052,0.65636,4156.3,4156.2,1.22098]
[1759287555450,0.242,4156.4,4156.3,0.43296]
[1759287555654,0.2234,4156.6,4156.5,1.35214]
[1759287555955,0.89833,4156.6,4156.5,1.35214]
[1759287556155,0.89833,4156.6,4156.5,0.9192]
[1759287556156,1.20963,4156.6,4156.5,0.9192]
[1759287556659,1.43133,4156.6,4156.5,1.35214]
[1759287557060,1.43133,4156.6,4156.5,0.9192]
[1759287557659,0.7564,4156.6,4156.5,1.35214]
[1759287557853,0.9984,4156.6,4156.5,1.35214]
[1759287558460,1.43133,4156.6,4156.5,1.35214]